bitfinex/quotes_SOLUSD_20241202
["timestamp","ask_amount","ask_price","bid_price","bid_amount"]
[1733154637270,30.7424,228.27,228.1,26.27]
[1733154637446,0.12549,228.26,228.12,26.27]
[1733154637646,17.544258,228.33,228.14,26.27]
[1733154637842,32.6492,228.37,228.16,26.27]
[1733154639062,32.6492,228.37,228.22,36.3079]
[1733154639247,47.322525,228.44,228.24,26.27]
[1733154639939,0.12549,228.43,228.24,26.27]
[1733154640139,29.7869,228.44,228.23,26.27]
[1733154640372,47.32258,228.44,228.23,26.27]
[1733154640559,47.32258,228.44,228.23,27.14379534]
[1733154640741,20.0,228.41,228.23,26.27]
[1733154641250,0.12549,228.4,228.23,26.27]
[1733154641649,0.12549,228.4,228.23,46.58740384]
[1733154641967,24.027864,228.36,228.23,46.58740384]
[1733154642144,24.027864,228.36,228.23,26.27]
[1733154643066,20.0,228.37,228.24,0.87374073]
[1733154643458,0.12549,228.36,228.24,0.87374073]
[1733154644173,24.027864,228.36,228.23,56.4363]
[1733154644550,0.12549,228.4,228.24,0.87380025]
[1733154644750,20.0,228.37,228.25,46.58740384]
[1733154645056,29.7869,228.44,228.25,46.58740384]
[1733154645057,29.4572,228.5,228.31,20.31740384]
[1733154645264,0.12549,228.49,228.31,20.31740384]
[1733154645461,0.12549,228.49,228.32,0.87348526]
[1733154645777,29.4572,228.5,228.32,0.87348526]
[1733154646270,20.0,228.47,228.31,20.31740384]
[1733154646658,0.12549,228.46,228.31,20.31740384]
[1733154646959,0.12549,228.42,228.31,20.31740384]
[1733154647164,20.0,228.43,228.32,11.14198326]
[1733154647360,28.7436,228.56,228.35,20.31740384]
[1733154647553,30.0,228.36,228.34,0.87326749]
[1733154647754,30.0,228.36,228.33,20.31740384]
[1733154648575,0.12549,228.51,228.32,10.2685]
[1733154648874,0.12549,228.43,228.32,10.2685]
[1733154649048,30.0,228.35,228.32,10.2685]
[1733154649568,30.0,228.35,228.33,20.31740384]
[1733154650356,23.902374,228.54,228.33,20.31740384]
[1733154650557,0.12549,228.53,228.32,36.5385]
[1733154651051,0.12549,228.46,228.32,36.5385]
[1733154651251,0.25098,228.46,228.33,20.31740384]
[1733154651572,20.0,228.47,228.32,37.41188462]
[1733154651573,30.0,228.34,228.32,10.2685]
[1733154653578,30.0,228.34,228.32,30.58590384]
[1733154654875,5.0,228.53,228.32,30.58590384]
[1733154654876,0.12549,228.52,228.32,30.58590384]
[1733154655074,0.12549,228.49,228.32,30.58590384]
[1733154655273,0.25098,228.45,228.33,0.87341462]
[1733154655648,20.0,228.42,228.33,0.87341462]
[1733154656453,0.25098,228.45,228.33,0.87341462]
[1733154656660,20.0,228.42,228.33,0.87341462]
[1733154657175,20.0,228.42,228.33,27.14341462]
[1733154657384,0.12549,228.51,228.33,27.14341462]
[1733154657682,0.25098,228.47,228.33,27.14341462]
[1733154657972,23.776884,228.47,228.35,26.27]
[1733154658175,28.7436,228.56,228.37,26.27]
[1733154658351,28.7436,228.56,228.39,26.27]
[1733154658552,0.12549,228.55,228.39,26.27]
[1733154658974,28.7436,228.56,228.39,26.27]
[1733154659353,0.12549,228.52,228.39,26.27]
[1733154659967,20.0,228.53,228.39,26.27]
[1733154659968,20.0,228.53,228.39,27.14310786]
[1733154660160,20.0,228.53,228.39,26.27]
[1733154660357,0.12549,228.52,228.37,26.27]
[1733154661082,0.12549,228.52,228.39,26.27]
[1733154661303,20.0,228.49,228.4,0.87312056]
[1733154661457,28.4036,228.61,228.42,46.58740384]
[1733154661658,28.4036,228.61,228.45,26.27]
[1733154661859,28.4036,228.61,228.47,26.27]
[1733154662065,0.12549,228.6,228.45,26.27]
[1733154662357,28.4036,228.61,228.45,26.27]
[1733154662566,37.8707,228.68,228.49,26.27]
[1733154662765,5.0,228.67,228.49,26.27]
[1733154663074,17.517597,228.67,228.49,26.27]
[1733154663268,22.517597,228.67,228.49,26.27]
[1733154663488,22.517597,228.67,228.45,26.27]
[1733154663794,20.0,228.58,228.44,27.5096]
[1733154663969,23.776884,228.57,228.45,20.31740384]
[1733154664290,20.0,228.58,228.45,20.31740384]
[1733154664591,20.0,228.58,228.48,46.58740384]
[1733154664893,0.12549,228.63,228.48,26.27]
[1733154665069,20.0,228.65,228.5,26.27]
[1733154665691,45.66733337,228.68,228.5,26.27]
[1733154665895,0.12549,228.67,228.49,9.5113]
[1733154666191,63.18422737,228.68,228.49,9.5113]
[1733154666192,24.027864,228.65,228.49,9.5113]
[1733154666364,24.027864,228.63,228.49,9.5113]
[1733154666790,0.12549,228.59,228.49,9.5113]
[1733154667088,0.12549,228.55,228.49,9.5113]
[1733154668173,0.25098,228.55,228.49,9.5113]
[1733154669075,20.0,228.56,228.49,9.5113]
[1733154669389,0.12549,228.55,228.49,9.5113]
[1733154669581,23.902374,228.55,228.44,27.5096]
[1733154669895,0.12549,228.42,228.32,9.676]
[1733154670077,23.902374,228.42,228.32,9.676]
[1733154670282,0.12549,228.42,228.33,0.873542]
[1733154670492,20.0,228.48,228.33,0.873542]
[1733154670699,0.12549,228.43,228.34,46.58740384]
[1733154671500,137.0,228.65,228.33,0.873542]
[1733154671501,23.6507,228.57,228.4,46.58740384]
[1733154671681,23.6507,228.57,228.42,46.58740384]
[1733154672003,23.6507,228.57,228.43,9.7199]
[1733154672497,23.6507,228.57,228.43,35.9899]
[1733154672798,0.12549,228.56,228.43,35.9899]
[1733154672998,0.25098,228.56,228.43,35.9899]
[1733154673297,26.0307,228.63,228.46,26.27]
[1733154673469,26.0307,228.63,228.48,46.58740384]
[1733154673674,26.0307,228.7,228.52,20.31740384]
[1733154673883,26.0307,228.7,228.52,46.58740384]
[1733154674104,26.0307,228.7,228.54,72.61090384]
[1733154674482,25.8507,228.7,228.54,72.61090384]
[1733154675402,20.0,228.67,228.54,72.61090384]
[1733154676191,0.12549,228.66,228.54,72.61090384]
[1733154676495,0.12549,228.66,228.54,52.2935]
[1733154676698,0.12549,228.66,228.53,10.4614]
[1733154676929,20.0,228.63,228.49,24.2696]
[1733154677205,0.12549,228.58,228.49,24.2696]
[1733154677387,20.0,228.63,228.5,20.31740384]
[1733154677578,0.12549,228.69,228.54,46.58740384]
[1733154677786,23.902374,228.69,228.53,26.27]
[1733154678596,23.902374,228.69,228.54,46.58740384]
[1733154678900,0.12549,228.65,228.54,26.27]
[1733154679200,0.12549,228.61,228.54,26.27]
[1733154679707,0.12549,228.65,228.54,26.27]
[1733154679885,0.12549,228.61,228.54,26.27]
[1733154680394,0.00342744,228.61,228.54,26.27]
[1733154680578,0.12549,228.61,228.54,26.27]
[1733154680778,0.12549,228.61,228.53,26.27]
[1733154680975,20.0,228.67,228.54,46.58740384]
[1733154681488,0.12549,228.69,228.54,46.58740384]
[1733154682378,0.5201613,228.8,228.6,20.31740384]
[1733154682894,5.5201613,228.8,228.58,20.31740384]
[1733154683297,0.12549,228.79,228.56,20.31740384]
[1733154683690,0.12549,228.75,228.55,34.613]
[1733154683895,0.25098,228.65,228.49,33.9287]
[1733154684082,0.12549,228.61,228.49,33.9287]
[1733154684281,0.25098,228.61,228.49,33.9287]
[1733154684504,24.027864,228.61,228.49,33.9287]
[1733154684691,20.0,228.58,228.49,33.9287]
[1733154685010,0.12549,228.63,228.49,54.24610384]
[1733154685182,20.0,228.61,228.49,54.24610384]
[1733154685386,20.0,228.61,228.51,20.31740384]
[1733154685697,0.12549,228.65,228.51,20.31740384]
[1733154686717,0.12549,228.61,228.49,80.51610384]
[1733154687897,0.12549,228.61,228.49,54.24610384]
[1733154688214,0.25098,228.61,228.49,33.9287]
[1733154690392,0.25098,228.61,228.49,54.24610384]
[1733154690922,0.12549,228.57,228.49,10.2546]
[1733154691103,0.25098,228.57,228.45,20.31740384]
[1733154691416,0.25098,228.57,228.44,35.7515]
[1733154691707,20.0,228.56,228.45,20.31740384]
[1733154691890,0.12549,228.55,228.45,20.31740384]
[1733154692092,0.25098,228.55,228.45,20.31740384]
[1733154693111,0.12549,228.55,228.45,20.31740384]
[1733154693611,0.12549,228.55,228.47,20.31740384]
[1733154694411,0.12549,228.58,228.51,20.31740384]
[1733154695094,0.12549,228.62,228.51,20.31740384]
[1733154695913,0.12549,228.59,228.51,20.31740384]
[1733154696412,0.12549,228.6,228.49,20.31740384]
[1733154696589,0.25098,228.6,228.49,20.31740384]
[1733154696991,0.25098,228.6,228.47,26.27]
[1733154696992,20.0,228.57,228.45,20.31740384]
[1733154697211,0.25098,228.56,228.45,20.31740384]
[1733154697515,0.25098,228.56,228.44,35.7515]
[1733154698895,0.25098,228.56,228.45,20.31740384]
[1733154701291,24.027864,228.56,228.43,20.31740384]
[1733154701496,0.12549,228.52,228.41,20.31740384]
[1733154702228,0.12549,228.52,228.43,20.31740384]
[1733154703303,20.0,228.49,228.39,20.31740384]
[1733154703507,0.12549,228.48,228.37,20.31740384]
[1733154704016,0.12549,228.48,228.39,20.31740384]
[1733154705121,0.12549,228.44,228.35,20.31740384]
[1733154705312,0.25098,228.44,228.35,20.31740384]
[1733154705827,24.027864,228.44,228.33,20.31740384]
[1733154706028,0.25098,228.4,228.31,20.31740384]
[1733154707509,0.25098,228.4,228.33,20.31740384]
[1733154707913,32.60271611,228.52,228.35,20.31740384]
[1733154707914,20.0,228.49,228.35,20.31740384]
[1733154708427,0.25098,228.44,228.35,20.31740384]
[1733154708833,0.25098,228.44,228.37,20.31740384]
[1733154709330,20.0,228.45,228.37,20.31740384]
[1733154709511,20.0,228.45,228.3,50.046884]
[1733154709512,24.7864,228.52,228.39,20.31740384]
[1733154709911,24.7864,228.52,228.41,20.31740384]
[1733154710940,24.7864,228.52,228.37,9.432]
[1733154711135,24.7864,228.52,228.34,20.31740384]
[1733154711432,24.7864,228.52,228.32,20.31740384]
[1733154711821,23.902374,228.51,228.32,20.31740384]
[1733154712013,20.0,228.48,228.32,20.31740384]
[1733154712334,20.0,228.44,228.32,20.31740384]
[1733154712711,23.902374,228.43,228.32,20.31740384]
[1733154713120,20.0,228.4,228.32,20.31740384]
[1733154713326,0.12549,228.39,228.32,20.31740384]
[1733154713629,0.12549,228.39,228.3,20.31740384]
[1733154714427,0.12549,228.39,228.28,20.31740384]
[1733154714832,0.12549,228.39,228.26,53.95120384]
[1733154715724,0.12549,228.39,228.28,20.31740384]
[1733154717127,20.0,228.44,228.33,20.31740384]
[1733154717436,24.0996,228.47,228.35,20.31740384]
[1733154718110,30.0,228.38,228.35,20.31740384]
[1733154720335,5.0,228.55,228.31,26.27]
[1733154720336,24.021,228.58,228.37,46.58740384]
[1733154720513,24.021,228.58,228.41,20.31740384]
[1733154721109,0.12549,228.57,228.41,20.31740384]
[1733154721348,24.021,228.58,228.41,20.31740384]
[1733154721715,20.0,228.55,228.41,20.31740384]
[1733154721914,20.0,228.51,228.35,46.58740384]
[1733154722114,0.12549,228.46,228.35,26.27]
[1733154722419,30.0,228.42,228.35,46.58740384]
[1733154722630,30.0,228.42,228.37,20.31740384]
[1733154723148,30.0,228.42,228.39,20.31740384]
[1733154723852,30.0,228.42,228.41,20.31740384]
[1733154724054,30.0,228.42,228.41,80.31727784]
[1733154724336,0.12549,228.57,228.44,20.0]
[1733154724548,30.0,228.45,228.44,20.31740384]
[1733154726029,30.0,228.45,228.44,46.58740384]
[1733154726235,30.0,228.45,228.44,57.53110384]
[1733154726746,2.81039863,228.66,228.46,26.27]
[1733154727055,25.6486,228.68,228.52,20.31740384]
[1733154727356,25.6486,228.68,228.5,26.27]
[1733154727357,25.6486,228.68,228.53,26.27]
[1733154727526,25.6486,228.68,228.51,26.27]
[1733154728221,0.12549,228.66,228.5,26.27]
[1733154728728,0.25098,228.59,228.5,26.27]
[1733154729046,24.027864,228.59,228.5,26.27]
[1733154729248,20.0,228.56,228.47,26.27]
[1733154729722,30.0,228.53,228.47,26.27]
[1733154730222,30.0,228.53,228.45,26.27]
[1733154730442,30.0,228.53,228.51,26.27]
[1733154730644,25.3893,228.66,228.52,46.58740384]
[1733154732122,0.12549,228.62,228.52,26.27]
[1733154732327,24.027864,228.62,228.52,26.27]
[1733154732538,0.25098,228.62,228.52,46.58740384]
[1733154733051,20.0,228.63,228.52,46.58740384]
[1733154733249,20.0,228.63,228.55,26.27]
[1733154733953,0.25098,228.62,228.51,26.27]
[1733154734144,30.0,228.55,228.44,20.31740384]
[1733154734340,24.63828,228.54,228.41,9.8275]
[1733154734525,0.12549,228.52,228.4,20.31740384]
[1733154734732,0.12549,228.52,228.36,36.97237482]
[1733154734733,0.25098,228.49,228.36,30.92880384]
[1733154734924,24.027864,228.49,228.35,26.27]
[1733154735345,24.027864,228.49,228.35,46.58740384]
[1733154735557,0.25098,228.47,228.35,46.58740384]
[1733154735850,0.25098,228.47,228.35,26.27]
[1733154736027,30.0,228.48,228.4,26.27]
[1733154736555,30.0,228.47,228.4,26.27]
[1733154737249,30.0,228.47,228.38,26.27]
[1733154738744,30.0,228.47,228.4,26.27]
[1733154740843,30.0,228.47,228.38,26.27]
[1733154741870,30.0,228.47,228.39,26.27]
[1733154743055,30.0,228.47,228.37,26.27]
[1733154744944,30.0,228.47,228.39,26.27]
[1733154745151,30.0,228.47,228.44,46.58740384]
[1733154745859,30.0,228.47,228.46,46.58740384]
[1733154746033,24.3873,228.54,228.48,26.27]
[1733154746232,30.0,228.49,228.48,70.36428784]
[1733154747065,24.3873,228.54,228.48,44.09428784]
[1733154750054,24.3873,228.54,228.48,20.31740384]
[1733154750261,24.3873,228.54,228.46,20.31740384]
[1733154750437,24.3873,228.54,228.44,20.31740384]
[1733154751942,24.3873,228.54,228.43,23.776884]
[1733154752147,0.25098,228.53,228.37,46.29830384]
[1733154752342,20.0,228.51,228.37,46.29830384]
[1733154752546,30.0,228.48,228.38,0.12549]
[1733154753467,30.0,228.48,228.37,21.19070051]
[1733154753638,30.0,228.48,228.39,20.31740384]
[1733154753957,30.0,228.48,228.45,20.31740384]
[1733154754159,30.0,228.48,228.47,20.31740384]
[1733154754351,24.3873,228.54,228.47,20.31740384]
[1733154754555,24.6849,228.61,228.47,20.31740384]
[1733154754743,24.6849,228.61,228.49,20.31740384]
[1733154755144,24.6849,228.61,228.51,20.31740384]
[1733154755867,24.6849,228.61,228.48,0.12549]
[1733154756056,24.6849,228.61,228.47,0.25098]
[1733154756245,24.6849,228.61,228.48,20.31740384]
[1733154757158,24.6849,228.61,228.49,26.27]
[1733154757361,24.6849,228.61,228.53,26.27]
[1733154758156,24.6849,228.61,228.54,46.58740384]
[1733154758948,24.6849,228.61,228.54,26.27]
[1733154759343,24.6849,228.61,228.51,26.27]
[1733154760163,24.6849,228.61,228.49,26.27]
[1733154760368,30.0,228.54,228.49,26.27]
[1733154760574,30.0,228.54,228.47,26.27]
[1733154761251,20.0,228.58,228.47,26.27]
[1733154761848,37.07559,228.57,228.42,20.31740384]
[1733154762066,20.0,228.5,228.37,26.27]
[1733154762247,20.0,228.5,228.38,26.27]
[1733154762445,0.12549,228.52,228.38,26.27]
[1733154762668,20.0,228.5,228.38,26.27]
[1733154763163,24.027864,228.56,228.41,26.27]
[1733154763374,20.0,228.53,228.41,26.27]
[1733154763550,20.0,228.54,228.41,26.27]
[1733154763893,0.12549,228.53,228.41,26.27]
[1733154764267,30.0,228.49,228.41,26.27]
[1733154765155,30.0,228.49,228.4,26.27]
[1733154765845,30.0,228.49,228.41,26.27]
[1733154766754,30.0,228.49,228.4,26.27]
[1733154767075,30.0,228.49,228.37,24.69240384]
[1733154767271,30.0,228.49,228.37,30.645]
[1733154767574,30.0,228.49,228.37,26.27]
[1733154767779,30.0,228.49,228.36,26.27]
[1733154767961,28.61679,228.48,228.36,26.27]
[1733154768160,30.0,228.47,228.36,26.27]
[1733154768764,30.0,228.47,228.31,10.3806]
[1733154769054,30.0,228.47,228.3,26.27]
[1733154769055,20.0,228.44,228.3,26.27]
[1733154769252,30.0,228.42,228.3,26.27]
[1733154769554,0.12549,228.41,228.27,20.31740384]
[1733154769956,0.12549,228.41,228.27,46.58740384]
[1733154770163,30.0,228.4,228.27,26.27]
[1733154770367,30.0,228.4,228.26,11.302]
[1733154770368,26.29689,228.39,228.26,26.27]
[1733154771259,30.0,228.38,228.26,26.27]
[1733154772069,30.0,228.38,228.25,20.31740384]
[1733154772370,30.0,228.38,228.27,20.31740384]
[1733154773685,30.0,228.38,228.24,0.87371387]
[1733154773686,30.0,228.38,228.3,20.31740384]
[1733154774276,30.0,228.38,228.32,20.31740384]
[1733154774655,30.0,228.38,228.3,20.31740384]
[1733154774861,30.0,228.38,228.31,23.776884]
[1733154775084,30.0,228.38,228.34,23.776884]
[1733154775464,26.2505,228.45,228.33,20.31740384]
[1733154775662,0.12549,228.44,228.33,20.31740384]
[1733154776167,0.12549,228.44,228.32,23.776884]
[1733154776488,0.25098,228.44,228.31,20.31740384]
[1733154776861,30.0,228.37,228.31,20.31740384]
[1733154777776,30.0,228.37,228.33,20.31740384]
[1733154778966,30.0,228.37,228.31,20.31740384]
[1733154779894,30.0,228.37,228.33,20.31740384]
[1733154781296,26.2505,228.45,228.35,20.31740384]
[1733154781480,26.2505,228.45,228.37,20.31740384]
[1733154781868,26.2505,228.45,228.39,20.31740384]
[1733154782089,27.0528,228.51,228.42,26.27]
[1733154782394,27.0528,228.51,228.43,20.31740384]
[1733154783169,27.0528,228.51,228.45,46.58740384]
[1733154783469,36.6496,228.57,228.49,20.31740384]
[1733154784189,25.7391,228.57,228.51,20.31740384]
[1733154784395,26.008,228.62,228.53,20.31740384]
[1733154784598,26.008,228.62,228.53,23.776884]
[1733154784599,30.0,228.54,228.53,23.776884]
[1733154784765,30.0,228.54,228.53,70.36428784]
[1733154785384,26.008,228.62,228.54,23.776884]
[1733154785600,26.008,228.62,228.55,20.31740384]
[1733154786472,26.008,228.62,228.54,23.776884]
[1733154786675,26.008,228.62,228.55,20.31740384]
[1733154786984,26.008,228.62,228.54,23.776884]
[1733154788396,26.008,228.62,228.54,20.0]
[1733154788699,26.008,228.62,228.55,20.31740384]
[1733154790295,26.008,228.62,228.5,0.87261983]
[1733154790296,27.92909,228.67,228.57,20.31740384]
[1733154790683,27.8036,228.67,228.59,20.31740384]
[1733154792194,27.9743,228.73,228.62,20.0]
[1733154792398,27.9743,228.73,228.63,20.31740384]
[1733154792703,27.9743,228.73,228.66,20.0]
[1733154793586,27.9743,228.73,228.65,12.62637937]
[1733154793782,27.9743,228.73,228.63,12.62637937]
[1733154796096,27.9743,228.73,228.64,4.375]
[1733154796495,0.12549,228.72,228.62,20.0]
[1733154796674,0.25098,228.72,228.62,20.0]
[1733154797086,0.25098,228.72,228.63,26.27]
[1733154797671,30.0,228.66,228.63,26.27]
[1733154798305,30.0,228.66,228.63,20.0]
[1733154798981,30.0,228.66,228.63,58.89637937]
[1733154799180,30.0,228.66,228.65,38.89637937]
[1733154799689,30.0,228.66,228.65,26.27]
[1733154800485,27.9743,228.73,228.65,26.27]
[1733154800987,27.86977763,228.73,228.65,26.27]
[1733154801194,0.12549,228.72,228.63,46.27]
[1733154802001,0.12549,228.72,228.62,20.0]
[1733154802299,0.12549,228.72,228.63,20.0]
[1733154803082,30.0,228.65,228.63,20.0]
[1733154804613,0.12549,228.72,228.63,20.0]
[1733154804987,0.12549,228.72,228.63,17.97998]
[1733154805913,30.0,228.64,228.58,26.27]
[1733154808820,30.0,228.64,228.53,17.509768]
[1733154808821,30.0,228.64,228.56,26.27]
[1733154810089,30.0,228.64,228.62,26.27]
[1733154810703,30.0,228.64,228.52,0.87245507]
[1733154810704,30.0,228.64,228.55,12.62637937]
[1733154811688,30.0,228.64,228.56,26.27]
[1733154812111,29.5,228.64,228.56,26.27]
[1733154812906,26.969,228.63,228.53,12.62637937]
[1733154813098,26.969,228.63,228.5,26.27]
[1733154813099,30.0,228.61,228.49,12.62637937]
[1733154813485,30.0,228.61,228.51,12.62637937]
[1733154813689,30.0,228.61,228.54,12.62637937]
[1733154814102,30.0,228.61,228.56,12.62637937]
[1733154814503,30.0,228.61,228.58,12.62637937]
[1733154815408,26.6427,228.68,228.58,12.62637937]
[1733154815617,26.6427,228.68,228.6,12.62637937]
[1733154815791,27.3277,228.73,228.62,12.62637937]
[1733154819204,27.3277,228.73,228.61,0.12549]
[1733154819402,27.3277,228.73,228.6,38.89637937]
[1733154819611,0.12549,228.72,228.6,38.89637937]
[1733154820498,27.3277,228.73,228.62,12.62637937]
[1733154821096,3.62515114,228.73,228.62,12.62637937]
[1733154822311,3.62515114,228.73,228.63,26.27]
[1733154823117,3.62515114,228.73,228.63,20.0]
[1733154825019,3.62515114,228.73,228.64,12.62637937]
[1733154825209,3.62515114,228.73,228.63,20.0]
[1733154825210,3.62515114,228.73,228.66,12.62637937]
[1733154828297,0.5201613,228.8,228.66,12.62637937]
[1733154828298,27.0753,228.78,228.66,12.62637937]
[1733154828514,27.20079,228.78,228.66,12.62637937]
[1733154828711,27.0753,228.78,228.66,12.62637937]
[1733154829327,27.0753,228.78,228.68,23.776884]
[1733154829498,27.0753,228.78,228.68,12.62637937]
[1733154829696,27.0753,228.78,228.67,38.89637937]
[1733154829904,27.0753,228.78,228.68,12.62637937]
[1733154830110,27.0753,228.78,228.69,12.62637937]
[1733154830509,27.0753,228.78,228.67,38.89637937]
[1733154832024,27.0753,228.78,228.67,12.62637937]
[1733154832199,27.0753,228.78,228.7,12.62637937]
[1733154832613,27.0753,228.78,228.71,12.62637937]
[1733154833526,0.5201613,228.8,228.73,12.62637937]
[1733154834103,0.5201613,228.8,228.72,12.62637937]
[1733154835824,0.5201613,228.8,228.71,20.0]
[1733154836829,0.5201613,228.8,228.72,20.0]
[1733154837520,0.5201613,228.8,228.73,20.0]
[1733154839110,0.5201613,228.8,228.71,20.0]
[1733154839316,0.5201613,228.8,228.67,38.7179]
[1733154839317,0.5201613,228.8,228.67,23.776884]
[1733154839820,0.5201613,228.8,228.66,2.79170718]
[1733154840005,0.5201613,228.8,228.64,24.18796937]
[1733154840707,0.5201613,228.8,228.67,20.0]
[1733154841631,30.0,228.73,228.64,2.79391145]
[1733154841923,30.0,228.73,228.62,12.62637937]
[1733154842133,30.0,228.73,228.63,26.27]
[1733154842618,30.0,228.73,228.66,12.62637937]
[1733154842819,30.0,228.73,228.71,26.27]
[1733154843405,30.0,228.73,228.68,26.27]
[1733154843723,30.0,228.73,228.72,26.27]
[1733154844235,0.5201613,228.8,228.72,26.27]
[1733154847110,0.5201613,228.8,228.75,20.0]
[1733154847312,0.5201613,228.8,228.76,26.27]
[1733154851533,0.5201613,228.8,228.77,38.89637937]
[1733154853534,0.5201613,228.8,228.76,26.27]
[1733154854532,0.5201613,228.8,228.78,26.27]
[1733154856445,0.5201613,228.8,228.79,26.27]
[1733154856735,0.5201613,228.8,228.75,12.62637937]
[1733154856736,0.5201613,228.8,228.75,26.22]
[1733154857531,0.5201613,228.8,228.74,26.22]
[1733154857814,30.5201613,228.8,228.74,26.22]
[1733154859943,30.5201613,228.8,228.77,20.0]
[1733154860940,30.5201613,228.8,228.77,46.22]
[1733154861117,30.5201613,228.8,228.77,58.83774973]
[1733154861727,0.5201613,228.8,228.77,58.83774973]
[1733154862445,0.5201613,228.8,228.79,38.83774973]
[1733154863443,0.5201613,228.8,228.79,62.61463373]
[1733154865452,0.5201613,228.8,228.79,62.74012373]
[1733154865852,0.5201613,228.8,228.79,62.61463373]
[1733154866153,0.5201613,228.8,228.79,26.22]
[1733154866471,0.5201613,228.8,228.79,38.83774973]
[1733154867756,0.5201613,228.8,228.78,26.22]
[1733154867928,0.5201613,228.8,228.79,39.70950754]
[1733154869045,0.5201613,228.8,228.79,63.48639154]
[1733154870130,28.3431,228.94,228.85,136.8798387]
[1733154870335,28.3431,228.94,228.87,20.0]
[1733154870534,28.3431,228.94,228.89,20.0]
[1733154870736,10.8608,229.01,228.89,20.0]
[1733154871852,0.12549,228.99,228.89,20.0]
[1733154873131,0.12549,229.0,228.89,20.0]
[1733154874156,20.0,228.98,228.87,20.0]
[1733154874332,23.902374,229.0,228.87,20.0]
[1733154877255,23.902374,229.0,228.88,26.22]
[1733154878963,23.902374,229.0,228.87,20.0]
[1733154879258,30.0,228.89,228.82,26.22]
[1733154880261,30.0,228.89,228.81,26.22]
[1733154880950,30.0,228.89,228.78,26.22]
[1733154880951,23.902374,228.88,228.78,26.22]
[1733154881143,0.12549,228.86,228.74,23.08284973]
[1733154881844,0.12549,228.86,228.75,26.22]
[1733154882053,30.0,228.85,228.75,26.22]
[1733154882454,30.0,228.85,228.74,23.08284973]
[1733154882766,30.0,228.85,228.7,37.3543]
[1733154882767,0.12549,228.83,228.7,26.4234]
[1733154883457,0.12549,228.81,228.7,26.4234]
[1733154884246,30.0,228.8,228.7,26.4234]
[1733154884764,30.0,228.8,228.72,20.0]
[1733154885969,0.12549,228.79,228.67,12.61774973]
[1733154886157,30.0,228.78,228.7,20.0]
[1733154886864,30.0,228.78,228.73,38.83774973]
[1733154887468,29.5,228.78,228.73,38.83774973]
[1733154891156,29.5,228.78,228.77,38.83774973]
[1733154892172,29.5,228.78,228.77,62.61463373]
[1733154892465,27.0678,228.9,228.77,62.61463373]
[1733154892466,27.0678,228.9,228.79,26.22]
[1733154892770,27.0678,228.9,228.8,12.61774973]
[1733154893669,27.0678,228.9,228.82,12.61774973]
[1733154894045,23.902374,229.0,228.82,12.61774973]
[1733154894246,38.3836,229.01,228.84,12.61774973]
[1733154894461,30.0,228.85,228.84,12.61774973]
[1733154894856,30.0,228.85,228.84,62.61463373]
[1733154895057,38.3836,229.01,228.85,49.996884]
[1733154895365,38.3836,229.01,228.89,12.61774973]
[1733154895573,30.0,228.9,228.89,62.61463373]
[1733154896075,27.3651,229.01,228.92,20.0]
[1733154896666,27.3651,229.01,228.89,38.83774973]
[1733154897880,27.3651,229.01,228.91,12.61774973]
[1733154898177,0.5201613,229.03,228.92,49.996884]